bitfinex-derivatives/quotes_BTCF0:USTF0_20251011
["timestamp","ask_amount","ask_price","bid_price","bid_amount"]
[1760150862717,0.51537485,113090.0,113080.0,0.16536]
[1760150863315,1.59297215,113090.0,113080.0,0.16536]
[1760150864324,1.59297215,113090.0,113080.0,0.16636]
[1760150867119,1.66328823,113090.0,113080.0,0.16636]
[1760150867918,1.2574231,113090.0,113080.0,0.16636]
[1760150868115,1.66328823,113090.0,113080.0,0.16636]
[1760150868625,0.94649093,113090.0,113080.0,0.16636]
[1760150869823,0.0703995,113090.0,113080.0,1.0155044]
[1760150870523,0.39252733,113140.0,113080.0,1.42136953]
[1760150870723,0.01283,113160.0,113140.0,0.1242014]
[1760150870916,0.14346784,113160.0,113150.0,0.38405]
[1760150871122,0.54933297,113160.0,113150.0,0.14325]
[1760150871318,0.14346784,113160.0,113150.0,0.14325]
[1760150871518,0.54933297,113160.0,113150.0,0.14325]
[1760150871723,0.52941713,113160.0,113150.0,0.14325]
[1760150872124,1.37572848,113160.0,113150.0,0.12]
[1760150872318,0.1235676,113140.0,113120.0,0.3608]
[1760150872625,0.01283,113130.0,113120.0,0.52405]
[1760150872829,0.03527,113130.0,113120.0,0.52405]
[1760150873030,0.03327,113130.0,113120.0,0.6123632]
[1760150873228,0.02244,113130.0,113120.0,1.0123632]
[1760150873629,0.055009,113130.0,113120.0,0.6133632]
[1760150875337,0.46087413,113130.0,113120.0,0.52505]
[1760150875528,0.055009,113130.0,113120.0,0.52505]
[1760150876332,0.54917953,113130.0,113120.0,0.52505]
[1760150877130,0.1433144,113130.0,113120.0,0.52505]
[1760150879737,0.1433144,113130.0,113120.0,0.52405]
[1760150880534,0.0883288,113100.0,113090.0,0.38405]
[1760150880729,0.1235988,113100.0,113090.0,0.4808]
[1760150880931,0.80776531,113120.0,113090.0,0.51138]
[1760150881132,0.5041407,113120.0,113110.0,0.02325]
[1760150881435,0.5041407,113120.0,113110.0,0.592371]
[1760150881436,0.03527,113120.0,113110.0,0.592371]
[1760150881936,0.03527,113120.0,113110.0,0.50405]
[1760150882134,0.1107532,113120.0,113110.0,0.14325]
[1760150882335,0.84995268,113120.0,113110.0,0.12]
[1760150882535,0.48915268,113120.0,113110.0,0.12]
[1760150882932,0.48915268,113120.0,113110.0,0.14325]
[1760150883142,0.46940161,113120.0,113110.0,0.14325]
[1760150883336,0.84995328,113120.0,113110.0,0.14325]
[1760150883639,0.84995328,113120.0,113110.0,0.12]
[1760150884232,0.14333487,113120.0,113110.0,0.12]
[1760150884440,0.1235832,113120.0,113110.0,0.12]
[1760150884945,0.1235832,113120.0,113110.0,0.14325]
[1760150885240,0.1235744,113120.0,113110.0,0.50405]
[1760150885435,0.1235744,113120.0,113110.0,0.14325]
[1760150885638,0.1235744,113120.0,113110.0,0.12]
[1760150885840,0.1235744,113120.0,113110.0,0.50405]
[1760150886036,0.01283,113130.0,113110.0,0.9996922]
[1760150886235,0.01283,113130.0,113120.0,0.38405]
[1760150886236,0.03527,113130.0,113120.0,0.38405]
[1760150886437,0.03527,113130.0,113120.0,0.50405]
[1760150886638,0.02244,113130.0,113120.0,0.50405]
[1760150886842,0.02244,113130.0,113120.0,0.5923544]
[1760150887137,0.1235666,113130.0,113120.0,0.50405]
[1760150887731,0.13323963,113140.0,113130.0,0.1188766]
[1760150887942,0.90192281,113150.0,113130.0,0.5996766]
[1760150888132,0.90192281,113150.0,113140.0,0.38405]
[1760150888133,0.94421589,113150.0,113140.0,0.38405]
[1760150888335,0.94421589,113150.0,113140.0,0.50405]
[1760150888542,0.90894589,113150.0,113140.0,0.5923388]
[1760150888738,0.90894589,113150.0,113140.0,1.0049988]
[1760150889544,0.90994589,113150.0,113140.0,1.0049988]
[1760150889846,1.02280564,113150.0,113140.0,1.0049988]
[1760150891035,0.58844621,113150.0,113140.0,1.0049988]
[1760150891235,0.01371,113170.0,113160.0,0.0882732]
[1760150891436,0.01371,113170.0,113160.0,0.9398732]
[1760150894942,0.0837999,113170.0,113160.0,0.9398732]
[1760150896549,0.0397999,113170.0,113160.0,0.9398732]
[1760150896751,0.01371,113170.0,113160.0,0.9398732]
[1760150898053,0.03613,113170.0,113160.0,0.9398732]
[1760150898558,0.08428703,113170.0,113160.0,1.3398732]
[1760150898746,0.07057703,113170.0,113160.0,1.3398732]
[1760150899052,0.01283,113180.0,113170.0,0.0882654]
[1760150899253,0.01283,113180.0,113170.0,0.5590654]
[1760150901451,0.1235076,113180.0,113170.0,0.5590654]
[1760150901655,0.03525,113180.0,113170.0,0.5590654]
[1760150901851,0.01283,113180.0,113170.0,0.5600654]
[1760150902253,0.01283,113180.0,113170.0,0.5590654]
[1760150902652,0.08258192,113180.0,113170.0,0.5590654]
[1760150903153,0.06975192,113180.0,113170.0,0.9590654]
[1760150903457,0.01371,113190.0,113180.0,0.0882576]
[1760150903657,0.01371,113190.0,113180.0,0.5690576]
[1760150904055,0.03613,113190.0,113180.0,0.5690576]
[1760150905156,0.1243798,113190.0,113180.0,0.5690576]
[1760150905550,0.03613,113190.0,113180.0,0.5690576]
[1760150906753,0.01371,113190.0,113180.0,0.5690576]
[1760150906951,0.08276387,113190.0,113180.0,0.5690576]
[1760150907156,0.01371,113190.0,113180.0,0.9690576]
[1760150908259,0.01371,113190.0,113180.0,0.98424771]
[1760150908552,0.01371,113190.0,113180.0,0.9690576]
[1760150909851,0.01371,113190.0,113180.0,0.5690576]
[1760150910460,0.01371,113190.0,113180.0,0.9690576]
[1760150910859,0.03225831,113190.0,113180.0,0.9690576]
[1760150911163,0.01371,113210.0,113200.0,0.088242]
[1760150911465,0.01371,113210.0,113200.0,0.569042]
[1760150914161,0.0846079,113210.0,113200.0,0.569042]
[1760150914960,0.5952621,113210.0,113200.0,0.4808]
[1760150915459,0.5952621,113210.0,113200.0,0.569042]
[1760150915967,0.4846079,113210.0,113200.0,0.569042]
[1760150916367,0.5070279,113210.0,113200.0,0.569042]
[1760150916565,0.5070279,113210.0,113200.0,0.4808]
[1760150916566,0.5952621,113210.0,113200.0,0.4808]
[1760150918064,0.5952621,113210.0,113200.0,0.569042]
[1760150918771,0.5952621,113210.0,113200.0,0.4808]
[1760150919368,0.62698943,113210.0,113200.0,0.4808]
[1760150919561,0.53875523,113210.0,113200.0,0.4808]
[1760150920571,0.62698943,113210.0,113200.0,0.4808]
[1760150920767,0.64286973,113210.0,113200.0,0.4808]
[1760150921364,0.55463553,113210.0,113200.0,0.4693166]
[1760150921767,0.64286973,113210.0,113200.0,0.4693166]
[1760150921962,0.55463553,113210.0,113200.0,0.4693166]
[1760150922365,0.11629616,113210.0,113200.0,0.5575586]
[1760150922563,0.0846079,113210.0,113200.0,0.5575586]
[1760150922971,0.0846079,113210.0,113200.0,0.9575586]
[1760150923660,0.0846079,113210.0,113200.0,0.5575586]
[1760150923861,0.1077479,113210.0,113200.0,0.5575586]
[1760150924466,0.0846079,113210.0,113200.0,0.5575586]
[1760150925869,0.0840179,113210.0,113200.0,0.9575586]
[1760150926064,0.0400179,113210.0,113200.0,0.9575586]
[1760150926265,0.01312,113210.0,113200.0,0.9575586]
[1760150926870,0.01312,113210.0,113200.0,0.5575586]
[1760150926871,0.10842822,113210.0,113200.0,0.5575586]
[1760150927268,0.10842822,113210.0,113200.0,0.4693166]
[1760150927661,0.10842822,113210.0,113200.0,0.5575586]
[1760150928768,0.10842822,113210.0,113200.0,0.4693166]
[1760150929272,0.08528822,113210.0,113200.0,0.5575586]
[1760150929571,0.08528822,113210.0,113200.0,0.9575586]
[1760150929966,0.08528822,113210.0,113200.0,0.5575586]
[1760150931476,0.01371,113230.0,113220.0,0.0882264]
[1760150931674,0.01371,113230.0,113220.0,0.9398264]
[1760150934670,0.08505402,113230.0,113220.0,0.96298675]
[1760150935577,0.08505402,113230.0,113220.0,0.97058647]
[1760150935872,0.08505402,113230.0,113220.0,1.37058647]
[1760150936280,0.85295243,113230.0,113220.0,0.87471489]
[1760150936578,0.48505402,113230.0,113220.0,0.96294129]
[1760150937578,0.48505402,113230.0,113220.0,0.9398264]
[1760150938279,0.48505402,113230.0,113220.0,0.96294129]
[1760150938475,0.08505402,113230.0,113220.0,0.96294129]
[1760150939272,0.03168826,113280.0,113250.0,0.088203]
[1760150939472,0.01379,113290.0,113280.0,0.0881797]
[1760150939677,0.01379,113290.0,113280.0,0.5789797]
[1760150939874,0.01379,113300.0,113290.0,0.0881719]
[1760150940080,0.01379,113300.0,113290.0,0.55750005]
[1760150940683,0.14079427,113320.0,113300.0,0.0881641]
[1760150940880,0.03587,113320.0,113310.0,0.7216]
[1760150941082,0.03587,113320.0,113310.0,0.8516]
[1760150941977,0.01379,113320.0,113310.0,0.9397563]
[1760150943477,0.01479,113320.0,113310.0,0.9397563]
[1760150943879,0.43687,113320.0,113310.0,0.9397563]
[1760150944276,0.01479,113320.0,113310.0,0.9397563]
[1760150945575,0.03687,113320.0,113310.0,0.8516]
[1760150945779,0.03687,113320.0,113310.0,0.9397563]
[1760150947282,0.01479,113320.0,113310.0,0.9397563]
[1760150948384,0.22850633,113330.0,113310.0,0.9397563]
[1760150948385,0.19929633,113330.0,113310.0,0.9397563]
[1760150948583,0.19929633,113330.0,113320.0,0.3608]
[1760150948584,0.43987876,113330.0,113320.0,0.3608]
[1760150948883,0.43987876,113330.0,113320.0,0.4908]
[1760150949283,0.51105408,113330.0,113320.0,0.4908]
[1760150949675,0.5251031,113330.0,113320.0,0.4908]
[1760150949876,0.08461532,113330.0,113320.0,0.5789485]
[1760150950078,0.08561532,113330.0,113320.0,0.5789485]
[1760150950784,0.10730532,113330.0,113320.0,0.5789485]
[1760150951784,0.12160089,113330.0,113320.0,0.5789485]
[1760150951986,0.10730532,113330.0,113320.0,0.5789485]
[1760150952484,0.08561532,113330.0,113320.0,0.5789485]
[1760150955284,0.10730532,113330.0,113320.0,0.5789485]
[1760150955484,0.06330532,113330.0,113320.0,0.5789485]
[1760150955682,0.07674532,113330.0,113320.0,0.5789485]
[1760150956080,0.88149408,113330.0,113320.0,0.4908]
[1760150956283,0.47674532,113330.0,113320.0,0.5789485]
[1760150956482,0.47674532,113330.0,113320.0,0.4908]
[1760150956483,0.56488612,113330.0,113320.0,0.4908]
[1760150956980,0.04161532,113330.0,113320.0,0.5789485]
[1760150957672,0.05505532,113330.0,113320.0,0.5789485]
[1760150958775,0.05505532,113330.0,113320.0,0.4908]
[1760150958776,0.07674532,113330.0,113320.0,0.4908]
[1760150958977,0.01344,113290.0,113270.0,0.38201]
[1760150959281,0.52805066,113290.0,113280.0,0.02121]
[1760150959482,0.02169,113290.0,113280.0,0.5901897]
[1760150959783,0.1016111,113300.0,113280.0,0.51222]
[1760150959981,0.03513,113290.0,113280.0,0.50201]
[1760150960285,0.03513,113290.0,113280.0,0.5901897]
[1760150960780,0.85439818,113290.0,113280.0,0.4808]
[1760150960981,0.94257008,113290.0,113280.0,0.12]
[1760150962482,0.43987876,113300.0,113290.0,0.02121]
[1760150962684,0.43987876,113300.0,113290.0,0.5901819]
[1760150963483,0.02169,113300.0,113290.0,0.5901819]
[1760150963684,0.42643876,113300.0,113290.0,0.5901819]
[1760150964188,0.83987876,113300.0,113290.0,0.50201]
[1760150964384,0.43513,113300.0,113290.0,0.5901819]
[1760150964580,0.48000162,113310.0,113290.0,0.6018519]
[1760150965188,0.03513,113300.0,113290.0,0.5901819]
[1760150966293,0.02169,113310.0,113300.0,0.1210441]
[1760150966492,0.02169,113310.0,113300.0,0.6018441]
[1760150966883,0.03513,113320.0,113310.0,0.1093663]
[1760150967084,0.03513,113320.0,113310.0,0.6101663]
[1760150967988,0.02169,113320.0,113310.0,0.6101663]
[1760150969395,0.98948722,113320.0,113310.0,0.5008]
[1760150969586,0.90133872,113320.0,113310.0,0.5008]
[1760150969892,0.90133872,113320.0,113310.0,0.52201]
[1760150970090,0.03169439,113320.0,113310.0,0.6218363]
[1760150970490,0.11991734,113330.0,113320.0,0.1210285]
[1760150970690,0.13427217,113330.0,113320.0,0.6018285]
[1760150970985,0.10991295,113330.0,113320.0,0.6018285]
[1760150971191,0.11991381,113330.0,113320.0,0.6018285]
[1760150971392,0.07230618,113330.0,113320.0,0.6018285]
[1760150971792,0.09399618,113330.0,113320.0,0.6018285]
[1760150971988,0.07230618,113330.0,113320.0,0.6018285]
[1760150972183,0.07330618,113330.0,113320.0,0.6018285]
[1760150972586,0.07330618,113330.0,113320.0,1.03258857]
[1760150972792,0.43987876,113370.0,113360.0,0.02121]
[1760150972986,0.16477048,113370.0,113360.0,0.50201]
[1760150974995,0.17917349,113370.0,113360.0,0.50201]
[1760150975391,0.18017349,113370.0,113360.0,0.5901274]
[1760150975692,0.18017349,113370.0,113360.0,0.50201]
[1760150976992,0.18017349,113370.0,113360.0,0.5901274]
[1760150977497,0.25129558,113370.0,113360.0,0.5901274]
[1760150978799,0.25129558,113370.0,113360.0,0.50201]
[1760150979894,1.14415404,113370.0,113360.0,0.12]
[1760150980792,0.73940528,113370.0,113360.0,0.12]
[1760150981092,1.14415404,113370.0,113360.0,0.12]
[1760150981397,1.50495404,113370.0,113360.0,0.12]
[1760150981692,0.0352,113350.0,113340.0,0.3608]
[1760150981890,0.0352,113340.0,113330.0,0.4831198]
[1760150982093,0.43994876,113350.0,113340.0,0.110643]
[1760150982394,0.43994876,113350.0,113340.0,0.591443]
[1760150983188,0.02247,113350.0,113340.0,0.603113]
[1760150983496,0.43994876,113360.0,113350.0,0.1106352]
[1760150983696,0.25107558,113370.0,113360.0,0.1106274]
[1760150983891,0.25107558,113370.0,113360.0,0.6014274]
[1760150984096,0.25107558,113370.0,113360.0,0.2406274]
[1760150984297,0.25107558,113370.0,113360.0,0.6014274]
[1760150985092,0.65682434,113370.0,113360.0,0.6014274]
[1760150985296,0.65682434,113370.0,113360.0,0.51331]
[1760150985498,0.74493404,113370.0,113360.0,0.51331]
[1760150986496,0.65682434,113370.0,113360.0,0.6014274]
[1760150988407,0.25207558,113370.0,113360.0,0.6130974]
[1760150989105,0.25207558,113370.0,113360.0,0.6014274]
[1760150989606,0.25207558,113370.0,113360.0,0.6130974]
[1760150989906,0.25136558,113370.0,113360.0,0.6014274]
[1760150991503,0.25036558,113370.0,113360.0,0.6014274]
[1760150992100,0.65511434,113370.0,113360.0,0.6014274]
[1760150992400,0.65511434,113370.0,113360.0,0.51331]
[1760150992603,0.74322404,113370.0,113360.0,0.13]
[1760150992904,1.50402404,113370.0,113360.0,0.13]
[1760150993105,1.05511434,113370.0,113360.0,0.15262]
[1760150993595,1.50402404,113370.0,113360.0,0.13]
[1760150993796,1.14322404,113370.0,113360.0,0.13]
[1760150994008,0.03486,113340.0,113330.0,0.4715592]
[1760150994307,0.03486,113340.0,113330.0,0.6015592]
[1760150995012,0.03486,113340.0,113330.0,0.6132292]
[1760150995207,0.03486,113340.0,113330.0,0.6142292]
[1760150996111,0.02131,113340.0,113330.0,0.6142292]
[1760150996609,0.03486,113340.0,113330.0,0.6025592]
[1760150998512,0.03486,113340.0,113330.0,0.62549194]
[1760150998902,0.03486,113340.0,113330.0,0.6025592]
[1760150999309,0.03486,113340.0,113330.0,0.62549194]
[1760151000003,0.41829876,113350.0,113340.0,0.088133]
[1760151000209,0.03486,113350.0,113340.0,0.601553]
[1760151000408,0.43960876,113350.0,113340.0,0.601553]
[1760151000607,0.03486,113350.0,113340.0,0.601553]
[1760151000803,0.02131,113350.0,113340.0,0.252423]
[1760151001014,0.03486,113350.0,113340.0,0.601553]
[1760151001310,0.02131,113350.0,113340.0,0.63621876]
[1760151001618,0.43960876,113360.0,113350.0,0.1107452]
[1760151001810,0.43960876,113360.0,113350.0,0.6015452]
[1760151002309,0.43960876,113360.0,113350.0,0.62454096]
[1760151002517,0.52772616,113360.0,113350.0,0.17561576]
[1760151002713,0.43960876,113360.0,113350.0,0.26374096]
[1760151002916,0.43960876,113360.0,113350.0,0.62454096]
[1760151003212,0.52772616,113360.0,113350.0,0.53641576]
[1760151003415,0.86746499,113360.0,113350.0,0.15299576]
[1760151003614,0.86746499,113360.0,113350.0,0.13]
[1760151003812,1.22826499,113360.0,113350.0,0.13]
[1760151004517,0.86746499,113360.0,113350.0,0.13]
[1760151004721,1.22826499,113360.0,113350.0,0.13]
[1760151005016,0.86746499,113360.0,113350.0,0.13]
[1760151005219,0.37934759,113360.0,113350.0,0.2407452]
[1760151005718,0.03486,113360.0,113350.0,0.6117552]
[1760151006111,0.03486,113360.0,113350.0,0.63475096]
[1760151006317,0.03486,113360.0,113350.0,0.63480862]
[1760151006620,0.03486,113360.0,113350.0,0.51342]
[1760151006621,0.46746499,113360.0,113350.0,0.51342]
[1760151006821,0.1229774,113360.0,113350.0,0.51342]
[1760151007017,0.1229774,113360.0,113350.0,0.15262]
[1760151007419,0.8837774,113360.0,113350.0,0.13]
[1760151007613,0.91546826,113360.0,113350.0,0.13]
[1760151007817,0.55466826,113360.0,113350.0,0.13]
[1760151008022,0.86746499,113360.0,113350.0,0.13]
[1760151009029,1.25995585,113360.0,113350.0,0.13]
[1760151010231,0.89915585,113360.0,113350.0,0.13]
[1760151010430,0.86746499,113360.0,113350.0,0.15159]
[1760151010829,0.02131,113360.0,113350.0,0.6107252]
[1760151011032,0.62038644,113370.0,113350.0,0.6107252]
[1760151011033,0.34769864,113370.0,113350.0,0.6107252]
[1760151011332,0.02267,113360.0,113350.0,0.6107252]
[1760151011837,0.0357,113360.0,113350.0,0.51239]
[1760151012731,0.34769864,113370.0,113350.0,0.5226]
[1760151013036,0.02267,113360.0,113350.0,0.6107244]
[1760151013530,0.0357,113360.0,113350.0,0.6107244]
[1760151014233,0.02267,113360.0,113350.0,0.6107244]
[1760151015135,0.22789558,113370.0,113350.0,0.6107244]
[1760151015335,0.25056558,113370.0,113360.0,0.38239]
[1760151015536,0.25056558,113370.0,113360.0,0.52239]
[1760151016137,0.25056558,113370.0,113360.0,0.16159]
[1760151016734,0.65056558,113370.0,113360.0,0.16159]
[1760151017241,0.73867528,113370.0,113360.0,0.16159]
[1760151017835,0.73867528,113370.0,113360.0,0.14]
[1760151019429,1.09947528,113370.0,113360.0,0.14]
[1760151019635,0.73867528,113370.0,113360.0,0.14]
[1760151020245,0.73867528,113370.0,113360.0,0.16159]
[1760151021036,0.73867528,113370.0,113360.0,0.14]
[1760151021441,1.08316287,113370.0,113360.0,0.14]
[1760151021640,1.08316287,113370.0,113360.0,0.16159]
[1760151022641,0.68316287,113370.0,113360.0,0.16159]
[1760151023342,0.68316287,113370.0,113360.0,0.14]
[1760151025042,1.47565373,113370.0,113360.0,0.14]
[1760151026644,1.44396287,113370.0,113360.0,0.14]
[1760151026840,1.73396287,113370.0,113360.0,0.14]
[1760151027038,1.04396287,113370.0,113360.0,0.14]
[1760151027645,0.68416287,113370.0,113360.0,0.16159]
[1760151028243,0.68316287,113370.0,113360.0,0.16159]
[1760151028746,0.68316287,113370.0,113360.0,0.14]
[1760151029043,0.25056558,113370.0,113360.0,0.16159]
[1760151030546,0.25056558,113370.0,113360.0,0.52239]
[1760151031345,0.33867528,113370.0,113360.0,0.52239]
[1760151031844,0.33867528,113370.0,113360.0,0.5008]
[1760151032545,1.09947528,113370.0,113360.0,0.14]
[1760151032940,0.73867528,113370.0,113360.0,0.14]
[1760151033442,1.09947528,113370.0,113360.0,0.14]
[1760151035655,1.13116614,113370.0,113360.0,0.14]
[1760151035949,1.09947528,113370.0,113360.0,0.14]
[1760151036554,1.13116614,113370.0,113360.0,0.14]
[1760151036951,1.13216614,113370.0,113360.0,0.14]
[1760151038652,0.73216614,113370.0,113360.0,0.14]
[1760151039353,1.64216614,113370.0,113360.0,0.14]
[1760151039548,1.13216614,113370.0,113360.0,0.14]
[1760151039853,0.1239152,113350.0,113340.0,0.38216918]
[1760151040052,0.46840279,113350.0,113340.0,0.40216918]
[1760151040646,0.02187,113350.0,113340.0,0.89030218]
[1760151040851,0.02187,113350.0,113340.0,0.90197218]
[1760151041658,0.03579,113350.0,113340.0,0.80216918]
[1760151042452,0.1239152,113350.0,113340.0,0.40216918]
[1760151042650,0.1239152,113350.0,113340.0,0.06588342]
[1760151042651,0.46840279,113350.0,113340.0,0.06588342]
[1760151043154,0.46840279,113350.0,113340.0,0.02]
[1760151043754,0.46840279,113350.0,113340.0,0.04305342]
[1760151043952,0.42440279,113350.0,113340.0,0.04283]
[1760151044153,0.46019279,113350.0,113340.0,0.04283]
[1760151045051,0.46019279,113350.0,113340.0,0.06588342]
[1760151046146,0.46019279,113350.0,113340.0,0.04283]
[1760151046352,0.46019279,113350.0,113340.0,0.06588342]
[1760151046552,0.46019279,113350.0,113340.0,0.02]
[1760151047357,0.82099279,113350.0,113340.0,0.04283]
[1760151047856,0.46019279,113350.0,113340.0,0.04283]
[1760151048857,0.46019279,113350.0,113340.0,0.06588342]
[1760151049158,0.1157052,113350.0,113340.0,0.06588342]
[1760151050956,0.4765052,113350.0,113340.0,0.06588342]
[1760151051158,0.1157052,113350.0,113340.0,0.06588342]
[1760151051358,0.1157052,113350.0,113340.0,0.04283]
[1760151051557,0.0717052,113350.0,113340.0,0.04283]
[1760151052758,0.4325052,113350.0,113340.0,0.04283]
[1760151052957,0.0717052,113350.0,113340.0,0.02]
[1760151053258,0.4325052,113350.0,113340.0,0.02]
[1760151054055,0.4325052,113350.0,113330.0,0.02305342]
[1760151054056,1.3525052,113350.0,113330.0,0.02305342]
[1760151054258,0.82842059,113340.0,113330.0,0.13]
[1760151054660,0.483933,113340.0,113330.0,0.15311]
[1760151054860,0.82842059,113340.0,113330.0,0.17616342]
[1760151055061,0.82842059,113340.0,113330.0,0.15305342]
[1760151055361,0.82842059,113340.0,113330.0,0.13]
[1760151055959,1.22842059,113340.0,113330.0,0.13]
[1760151058868,0.82842059,113340.0,113330.0,0.13]
[1760151059368,0.883933,113340.0,113330.0,0.13]
[1760151059567,1.22842059,113340.0,113330.0,0.13]
[1760151061466,1.27695283,113340.0,113330.0,0.13]
[1760151061866,1.22842059,113340.0,113330.0,0.13]
[1760151062665,0.0881522,113320.0,113300.0,0.56247]
[1760151062969,0.1231563,113310.0,113300.0,0.42558]
[1760151063173,0.1231563,113310.0,113300.0,0.05311]
[1760151063174,0.4839563,113310.0,113300.0,0.05311]
[1760151063370,0.1231563,113310.0,113300.0,0.05311]
[1760151063675,0.02111,113310.0,113300.0,0.82769]
[1760151063873,0.02111,113310.0,113300.0,0.46689]
[1760151064268,0.15650464,113310.0,113300.0,0.46689]
[1760151064474,0.1231563,113310.0,113300.0,0.46789]
[1760151064676,0.1231563,113310.0,113300.0,0.45411]
[1760151065176,0.13551745,113310.0,113300.0,0.031]
[1760151065476,0.54048293,113310.0,113300.0,0.03]
[1760151065682,0.54048293,113310.0,113300.0,0.05411]
[1760151066775,0.52659293,113310.0,113300.0,0.46789]
[1760151067473,0.51422518,113320.0,113310.0,0.03689]
[1760151067675,0.52811518,113320.0,113310.0,0.16689]
[1760151067875,0.52811518,113320.0,113310.0,0.13]
[1760151068073,1.36832486,113320.0,113310.0,0.13]
[1760151068277,0.52811518,113320.0,113310.0,0.13]
[1760151068679,0.88891518,113320.0,113310.0,0.13]
[1760151069069,1.28891518,113320.0,113310.0,0.13]
[1760151070974,1.28891518,113320.0,113310.0,0.15311]
[1760151070975,0.88891518,113320.0,113310.0,0.15311]
[1760151072377,0.88891518,113320.0,113310.0,0.13]
[1760151072680,1.71619074,113320.0,113310.0,0.13]
[1760151081283,0.03559,113290.0,113280.0,0.59664]
[1760151081586,0.03559,113290.0,113280.0,0.41664]
[1760151081784,0.02264,113290.0,113280.0,0.41664]
[1760151082786,0.51577728,113290.0,113280.0,0.41664]
[1760151083583,0.42760548,113290.0,113280.0,0.41664]
[1760151083788,0.02264,113290.0,113280.0,0.41764]
[1760151083989,0.1237618,113290.0,113280.0,0.41764]
[1760151084288,0.1237618,113290.0,113280.0,0.80286]
[1760151084688,0.52872728,113290.0,113280.0,0.80286]
[1760151084986,0.52872728,113290.0,113280.0,0.81572]
[1760151085881,0.51577728,113290.0,113280.0,0.81572]
[1760151086587,0.02264,113290.0,113280.0,0.81572]
[1760151086981,0.51577728,113290.0,113280.0,0.81572]
[1760151089088,0.1108118,113290.0,113280.0,0.81572]
[1760151089284,0.51577728,113290.0,113280.0,0.84644405]
[1760151091481,0.51577728,113290.0,113280.0,0.93462365]
[1760151091482,0.02264,113290.0,113280.0,0.93462365]
[1760151091690,0.02105,113300.0,113290.0,0.03566]
[1760151091987,0.02105,113300.0,113290.0,0.50646]
[1760151092385,0.1092145,113300.0,113290.0,0.14566]
[1760151092782,0.1092145,113300.0,113290.0,0.16884628]
[1760151092988,0.88880998,113300.0,113290.0,0.13318628]
[1760151093183,0.52800998,113300.0,113290.0,0.13318628]
[1760151093688,0.88880998,113300.0,113290.0,0.15598628]
[1760151094079,0.88880998,113300.0,113290.0,0.13318628]
[1760151095184,0.88880998,113300.0,113290.0,0.15598628]
[1760151096282,0.88880998,113300.0,113290.0,0.13318628]
[1760151096687,0.88880998,113300.0,113290.0,0.11]
[1760151097888,0.88880998,113300.0,113290.0,0.1328]
[1760151099788,0.88880998,113300.0,113290.0,0.11]
[1760151101589,0.88880998,113300.0,113290.0,0.13228]
[1760151102191,0.88880998,113300.0,113290.0,0.11]
[1760151103592,0.88880998,113300.0,113290.0,0.13228]
[1760151104387,0.88880998,113300.0,113290.0,0.11]
[1760151106086,0.88880998,113300.0,113290.0,0.13228]
[1760151106687,0.88880998,113300.0,113290.0,0.13318628]
[1760151112699,0.88880998,113300.0,113290.0,0.13418628]
[1760151113302,0.88880998,113300.0,113290.0,0.13318628]
[1760151116494,0.4838445,113300.0,113290.0,0.13318628]
[1760151116699,0.88880998,113300.0,113290.0,0.13318628]
[1760151117000,0.02105,113300.0,113290.0,0.5449]
[1760151117202,0.43959548,113300.0,113290.0,0.93642405]
[1760151117403,0.52775948,113300.0,113290.0,0.56260405]
[1760151117602,0.88855948,113300.0,113290.0,0.13325814]
[1760151117904,0.88855948,113300.0,113290.0,0.11]
[1760151118306,0.88855948,113300.0,113290.0,0.13325851]
[1760151120405,0.02204,113270.0,113260.0,0.25513851]
[1760151120594,0.02204,113270.0,113260.0,0.0649]
[1760151120595,0.42700548,113270.0,113260.0,0.0649]
[1760151121602,0.02104,113240.0,113230.0,0.52905249]
[1760151121807,0.51421618,113240.0,113230.0,0.12009398]
[1760151122103,0.78680548,113240.0,113230.0,0.14197398]
[1760151122303,0.42500548,113240.0,113230.0,0.15499398]
[1760151122803,0.42500548,113240.0,113230.0,0.51679398]
[1760151122804,0.55642218,113240.0,113230.0,0.51679398]
[1760151122999,0.55642218,113240.0,113230.0,0.15599398]
[1760151124706,0.1514567,113240.0,113230.0,0.15499398]
[1760151125103,0.55642218,113240.0,113230.0,0.51579398]
[1760151125510,0.49665465,113240.0,113230.0,0.15499398]
[1760151126006,0.49665465,113240.0,113230.0,0.51579398]
[1760151127105,0.1514567,113240.0,113230.0,0.51579398]
[1760151127301,0.49665465,113240.0,113230.0,0.51579398]
[1760151127502,0.1314167,113240.0,113230.0,1.00401248]
[1760151127702,0.79419565,113260.0,113230.0,1.00401248]
[1760151127901,0.02204,113240.0,113230.0,0.60401248]
[1760151128708,0.02204,113240.0,113230.0,0.51579398]
[1760151131411,0.15282171,113240.0,113230.0,0.51679398]
[1760151131610,0.15961171,113240.0,113230.0,0.91679398]
[1760151131911,0.15961171,113240.0,113230.0,0.55599398]
[1760151132113,0.15282171,113240.0,113230.0,0.54226398]
[1760151132809,0.15282171,113240.0,113230.0,0.14126398]
[1760151133106,0.15282171,113240.0,113230.0,0.15430398]
[1760151133312,0.15282171,113240.0,113230.0,0.12009398]
[1760151133811,0.15282171,113240.0,113230.0,0.15430398]
[1760151134306,0.15282171,113240.0,113230.0,0.51510398]
[1760151138316,0.89594432,113270.0,113260.0,0.03421]
[1760151138512,0.80775202,113270.0,113260.0,0.15421]
[1760151138715,0.44695202,113270.0,113260.0,0.6032052]
[1760151139017,0.06928034,113270.0,113260.0,1.0032052]
[1760151139204,0.34519795,113300.0,113290.0,0.01304]
[1760151139411,0.36633795,113300.0,113290.0,0.15421]
[1760151140011,0.36633795,113300.0,113290.0,0.51454603]
[1760151140217,0.45450205,113300.0,113290.0,0.15374603]
[1760151140417,0.52493463,113300.0,113290.0,0.15374603]
[1760151140817,0.53621031,113300.0,113290.0,0.15374603]
[1760151141416,0.53721031,113300.0,113290.0,0.12]
[1760151141809,0.66846487,113300.0,113290.0,0.12]
[1760151142017,0.66946487,113300.0,113290.0,0.12]
[1760151142615,0.58130077,113300.0,113290.0,0.15421]
[1760151142808,0.58130077,113300.0,113290.0,0.51501]
[1760151143414,0.21496282,113300.0,113290.0,0.6031818]
[1760151143718,0.21496282,113300.0,113290.0,1.0031818]
[1760151143922,0.07243258,113300.0,113290.0,1.0031818]
[1760151145020,0.07243258,113300.0,113290.0,0.6031818]
[1760151145718,0.09357258,113300.0,113290.0,0.6031818]
[1760151147516,0.52693463,113300.0,113290.0,0.12]